bitfinex/quotes_ETHUSD_20250916
["timestamp","ask_amount","ask_price","bid_price","bid_amount"]
[1757986322530,34.6688806,4543.2,4543.1,0.001]
[1757986322930,34.66876543,4543.2,4543.1,0.001]
[1757986323356,37.74439643,4543.2,4543.1,0.001]
[1757986323961,35.81897943,4543.2,4543.1,0.001]
[1757986324254,18.50371743,4543.2,4543.1,0.001]
[1757986324451,37.37679043,4543.2,4543.1,0.001]
[1757986324823,28.30161465,4543.2,4543.1,1.2459]
[1757986325053,14.66724152,4543.2,4543.1,1.2459]
[1757986325239,12.72721226,4543.2,4543.1,1.2459]
[1757986325422,15.32470226,4543.2,4543.1,1.2459]
[1757986325822,16.11670226,4543.2,4543.1,1.2459]
[1757986326233,21.19991413,4543.2,4543.1,0.5002]
[1757986326433,20.97521513,4543.2,4543.1,0.7928]
[1757986326642,20.97521513,4543.2,4543.1,1.2459]
[1757986327050,20.97521513,4543.2,4543.1,0.001]
[1757986327255,21.83127904,4543.2,4543.1,0.001]
[1757986327461,49.1190996,4543.2,4543.1,0.001]
[1757986327622,42.94429378,4543.2,4543.1,0.001]
[1757986327822,32.97881522,4543.2,4543.1,0.001]
[1757986328051,26.57703622,4543.2,4543.1,0.001]
[1757986328252,26.67603622,4543.2,4543.1,0.001]
[1757986328457,33.63104822,4543.2,4543.1,0.001]
[1757986328826,32.23288322,4543.2,4543.1,0.001]
[1757986329440,47.12830822,4543.2,4543.1,0.001]
[1757986329666,47.31790822,4543.2,4543.1,0.001]
[1757986329833,47.58091978,4543.2,4543.1,0.001]
[1757986330343,48.77387301,4543.2,4543.1,0.001]
[1757986330539,51.09587301,4543.2,4543.1,0.001]
[1757986330933,51.78572718,4543.2,4543.1,0.001]
[1757986331764,51.33362718,4543.2,4543.1,0.001]
[1757986332063,51.67897001,4543.2,4543.1,0.001]
[1757986332765,8.55429241,4543.2,4543.1,1.2459]
[1757986332969,8.2493285,4543.2,4543.1,1.2459]
[1757986333172,5.04332029,4543.2,4543.1,1.2459]
[1757986333335,8.25482055,4543.2,4543.1,1.2459]
[1757986333534,12.52132029,4543.2,4543.1,1.2459]
[1757986334540,33.32025378,4543.2,4543.1,0.001]
[1757986334766,43.77195378,4543.2,4543.1,0.001]
[1757986335143,43.31985378,4543.2,4543.1,0.001]
[1757986335340,43.9130186,4543.2,4543.1,0.001]
[1757986335768,43.31985378,4543.2,4543.1,0.001]
[1757986335937,44.56310315,4543.2,4543.1,0.001]
[1757986336133,46.88510315,4543.2,4543.1,0.001]
[1757986336368,47.14811471,4543.2,4543.1,0.001]
[1757986336979,46.35696534,4543.2,4543.1,0.001]
[1757986337585,5.99347939,4542.4,4542.1,0.5202]
[1757986337887,33.11875882,4542.4,4542.1,0.5202]
[1757986338088,38.66660256,4542.4,4542.3,1.2459]
[1757986338383,28.34309057,4542.4,4542.3,1.2459]
[1757986338679,24.78518357,4542.4,4542.3,1.2459]
[1757986339180,24.78518357,4542.4,4542.3,0.001]
[1757986339350,24.78518357,4542.4,4542.3,1.2459]
[1757986339555,37.76921657,4542.4,4542.3,1.2459]
[1757986339966,34.91725857,4542.4,4542.3,1.2459]
[1757986340584,33.24443057,4542.4,4542.3,1.2459]
[1757986340960,33.59533885,4542.4,4542.3,1.2459]
[1757986341676,21.37424985,4542.4,4542.3,1.2459]
[1757986341859,25.61338464,4542.4,4542.3,1.2459]
[1757986342262,25.01979136,4542.4,4542.3,1.2459]
[1757986342455,25.01979136,4542.4,4542.3,0.7467]
[1757986342656,45.27393836,4542.4,4542.3,0.001]
[1757986342958,45.86788736,4542.4,4542.3,0.001]
[1757986343154,45.27393836,4542.4,4542.3,0.001]
[1757986343405,45.3622453,4542.4,4542.3,0.001]
[1757986344259,40.4759003,4542.4,4542.3,1.1915]
[1757986344512,20.2192473,4542.4,4542.3,1.1915]
[1757986344721,21.7735443,4542.4,4542.3,1.1915]
[1757986345059,21.5331183,4542.4,4542.3,1.1915]
[1757986345589,21.7611293,4542.4,4542.3,1.1915]
[1757986345775,21.5331173,4542.4,4542.3,1.1915]
[1757986346703,7.43738289,4542.4,4542.3,1.1915]
[1757986346991,11.15585526,4542.4,4542.3,1.1915]
[1757986347230,11.630355,4542.4,4542.3,1.1915]
[1757986347367,11.630355,4542.4,4542.3,0.001]
[1757986347568,11.630355,4542.4,4542.3,0.7382]
[1757986347779,11.630355,4542.4,4542.3,1.1915]
[1757986349191,11.63035857,4542.4,4542.3,1.1915]
[1757986350262,7.94335857,4542.4,4542.3,1.1915]
[1757986350464,11.62935857,4542.4,4542.3,1.1915]
[1757986351096,7.94335857,4542.4,4542.3,1.1915]
[1757986351267,11.62935857,4542.4,4542.3,1.1915]
[1757986351666,8.62935857,4542.4,4542.3,1.1915]
[1757986351867,5.62753055,4542.4,4542.3,1.1915]
[1757986352066,7.15517207,4542.4,4542.3,1.1915]
[1757986352395,9.8311512,4542.4,4542.3,1.1915]
[1757986352604,7.03750102,4542.4,4542.3,1.1915]
[1757986352899,10.03750102,4542.4,4542.3,1.1915]
[1757986354468,10.03750102,4542.4,4542.3,0.001]
[1757986354469,15.06863581,4542.4,4542.3,0.001]
[1757986355368,15.37363579,4542.4,4542.3,0.001]
[1757986355569,15.1672499,4542.4,4542.3,0.001]
[1757986356087,15.1672499,4542.4,4542.3,0.4357]
[1757986356405,15.37366595,4542.4,4542.3,0.4357]
[1757986356705,10.62317319,4542.4,4542.3,1.1915]
[1757986359482,12.31717319,4542.4,4542.3,1.1915]
[1757986360112,12.31717319,4542.4,4542.3,0.4543]
[1757986360409,12.31717319,4542.4,4542.3,1.1915]
[1757986361617,12.31717319,4542.4,4542.3,0.7568]
[1757986361806,12.31717319,4542.4,4542.3,0.001]
[1757986362705,13.11614126,4542.4,4542.3,0.001]
[1757986367334,12.82854126,4542.4,4542.3,0.001]
[1757986367652,12.52357735,4542.4,4542.3,1.1915]
[1757986368807,12.52379253,4542.4,4542.3,1.1915]
[1757986369354,8.83779253,4542.4,4542.3,1.1915]
[1757986369633,12.52379253,4542.4,4542.3,1.1915]
[1757986370351,12.5237953,4542.4,4542.3,1.1915]
[1757986370844,5.84431591,4542.4,4542.3,1.1915]
[1757986371003,5.38,4542.4,4542.3,1.1915]
[1757986371202,8.38,4542.4,4542.3,1.1915]
[1757986374946,4.694,4542.4,4542.3,1.1915]
[1757986375165,8.379,4542.4,4542.3,1.1915]
[1757986385458,5.379,4542.4,4542.3,1.1915]
[1757986385672,0.34730837,4542.6,4542.5,2.20143093]
[1757986385956,0.002,4542.6,4542.5,1.2132]
[1757986386148,0.002,4542.6,4542.5,3.41463093]
[1757986386356,0.002,4542.6,4542.5,17.91463093]
[1757986386666,0.002,4542.6,4542.5,19.93858092]
[1757986391572,0.002,4542.6,4542.5,17.73714999]
[1757986392139,0.002,4542.6,4542.5,19.93858092]
[1757986394441,0.002,4542.6,4542.5,5.43858092]
[1757986394642,0.002,4542.6,4542.5,3.41463093]
[1757986394982,0.002,4542.6,4542.5,17.91463093]
[1757986400306,0.002,4542.6,4542.5,22.15476572]
[1757986401776,0.002,4542.6,4542.5,17.91563093]
[1757986403059,0.002,4542.6,4542.5,18.02523093]
[1757986403262,0.002,4542.6,4542.5,20.16438276]
[1757986403691,0.002,4542.6,4542.5,20.05478276]
[1757986407520,0.002,4542.6,4542.5,20.16438276]
[1757986418455,0.002,4542.6,4542.5,20.27398276]
[1757986419719,0.002,4542.6,4542.5,23.27398276]
[1757986426189,0.002,4542.6,4542.5,26.95598276]
[1757986430201,0.002,4542.6,4542.5,26.95498276]
[1757986434608,0.002,4542.6,4542.5,23.27398276]
[1757986434813,0.002,4542.6,4542.5,26.95498276]
[1757986435248,0.002,4542.6,4542.5,23.27398276]
[1757986435425,0.002,4542.6,4542.5,26.95498276]
[1757986438780,0.002,4542.6,4542.5,28.64798276]
[1757986440154,1e-08,4543.1,4543.0,7.28400547]
[1757986440321,1e-08,4543.1,4543.0,11.91253197]
[1757986440650,1e-08,4543.1,4543.0,13.24733197]
[1757986440956,1e-08,4543.1,4543.0,27.8355756]
[1757986443268,1e-08,4543.1,4543.0,27.0600756]
[1757986445465,0.59450001,4543.1,4543.0,17.84755877]
[1757986445669,0.59450001,4543.1,4543.0,6.07903227]
[1757986445841,0.78410001,4543.1,4543.0,6.07903227]
[1757986446234,0.78410001,4543.1,4543.0,5.88118864]
[1757986446639,0.78410001,4543.1,4543.0,2.20118864]
[1757986446835,0.78410001,4543.1,4542.9,3.68]
[1757986447170,0.09900001,4543.1,4543.0,2.20118864]
[1757986447344,0.09900001,4543.1,4543.0,18.0506872]
[1757986447545,0.09900001,4543.1,4543.0,18.02867532]
[1757986447880,1e-08,4543.1,4543.0,19.06257532]
[1757986450079,0.09900001,4543.1,4543.0,18.13827532]
[1757986451262,1e-08,4543.1,4543.0,18.13827532]
[1757986452069,1e-08,4543.1,4543.0,18.63377532]
[1757986452770,1e-08,4543.1,4543.0,19.85897532]
[1757986452935,1e-08,4543.1,4543.0,18.63377532]
[1757986453691,1e-08,4543.1,4543.0,19.55807532]
[1757986455768,1e-08,4543.1,4543.0,18.63377532]
[1757986456875,1e-08,4543.1,4543.0,19.55807532]
[1757986457689,1e-08,4543.1,4543.0,19.85897532]
[1757986458271,1e-08,4543.1,4543.0,22.85897532]
[1757986460462,1e-08,4543.1,4543.0,22.86217532]
[1757986460795,1e-08,4543.1,4543.0,22.75257532]
[1757986461092,1e-08,4543.1,4543.0,22.86217532]
[1757986461858,1e-08,4543.1,4543.0,27.09484337]
[1757986463758,1e-08,4543.1,4543.0,31.32751142]
[1757986464160,1e-08,4543.1,4543.0,27.09484337]
[1757986465886,1e-08,4543.7,4543.2,2.20109174]
[1757986466086,1e-08,4543.7,4543.6,7.23266805]
[1757986466395,1e-08,4543.7,4543.6,11.20076805]
[1757986466600,1e-08,4543.7,4543.6,28.82406601]
[1757986467179,1e-08,4543.7,4543.6,28.91229465]
[1757986467370,1e-08,4543.7,4543.6,31.05144648]
[1757986469672,1e-08,4543.7,4543.6,29.83994648]
[1757986470286,0.09900001,4543.7,4543.6,29.83994648]
[1757986470586,1e-08,4543.7,4543.6,29.83994648]
[1757986471175,0.09900001,4543.7,4543.6,29.83994648]
[1757986471477,0.09900001,4543.7,4543.6,25.60727843]
[1757986472278,0.09900001,4543.7,4543.6,25.60627843]
[1757986472479,0.56580001,4543.7,4543.6,21.92827843]
[1757986472703,0.56580001,4543.7,4543.6,29.83894648]
[1757986473246,0.09900001,4543.7,4543.6,29.83894648]
[1757986476031,0.09900001,4543.7,4543.6,29.94854648]
[1757986477032,0.56580001,4543.7,4543.6,29.94854648]
[1757986477531,0.56580001,4543.7,4543.6,25.71587843]
[1757986478233,0.09900001,4543.7,4543.6,25.71587843]
[1757986479232,0.09900001,4543.7,4543.6,22.71587843]
[1757986479904,1e-08,4543.7,4543.6,26.94854648]
[1757986480601,1e-08,4543.7,4543.6,23.27054648]
[1757986480802,0.09900001,4543.7,4543.6,26.94754648]
[1757986481403,0.09900001,4543.7,4543.6,23.27054648]
[1757986481604,1e-08,4543.7,4543.6,26.94754648]
[1757986481800,0.09990001,4543.7,4543.6,26.94754648]
[1757986484418,0.09990001,4543.7,4543.6,23.27054648]
[1757986484641,0.56670001,4543.7,4543.6,2.2891266]
[1757986484827,0.75540001,4543.7,4543.6,5.87789796]
[1757986486511,0.56670001,4543.7,4543.6,5.87789796]
[1757986488622,0.56670001,4543.7,4543.6,20.37789796]
[1757986490533,0.56670001,4543.7,4543.6,14.5]
[1757986490737,0.75540001,4543.7,4543.6,5.87789796]
[1757986490910,0.75540001,4543.7,4543.6,2.20089796]
[1757986491115,0.75540001,4543.7,4543.6,5.87789796]
[1757986491312,0.56670001,4543.7,4543.6,2.20089796]
[1757986491511,0.75540001,4543.7,4543.6,2.20089796]
[1757986492349,0.75540001,4543.7,4543.4,20.37795237]
[1757986492533,0.1096,4543.5,4543.4,20.37799484]
[1757986492737,0.6825,4543.5,4543.4,20.37799484]
[1757986494263,0.2104,4543.5,4543.4,20.37799484]
[1757986494946,0.2104,4543.5,4543.4,5.87799484]
[1757986495360,0.2104,4543.5,4543.4,20.37799484]
[1757986498460,0.2104,4543.5,4543.4,5.87799484]
[1757986498842,0.2104,4543.5,4543.4,20.37799484]
[1757986499167,0.6692,4543.5,4543.4,20.37799484]
[1757986500446,0.6692,4543.5,4543.4,16.70099484]
[1757986500654,0.6692,4543.5,4543.4,20.37699484]
[1757986501179,0.2104,4543.5,4543.4,20.37699484]
[1757986501328,0.2104,4543.5,4543.4,5.87699484]
[1757986501964,0.6692,4543.5,4543.4,5.87699484]
[1757986502388,0.6692,4543.5,4543.1,14.501]
[1757986502674,0.6466,4543.4,4543.2,3.676]
[1757986502833,0.1096,4543.2,4543.1,0.001]
[1757986503036,0.856,4543.2,4543.1,0.001]
[1757986503235,1.648,4543.2,4543.1,0.001]
[1757986503435,6.84909174,4543.2,4543.1,0.001]
[1757986503639,6.93737043,4543.2,4543.1,0.001]
[1757986503839,10.61337043,4543.2,4543.1,0.001]
[1757986504267,8.41227869,4543.2,4543.1,0.001]
[1757986504635,10.61337043,4543.2,4543.1,0.001]
[1757986506466,8.41227869,4543.2,4543.1,0.001]
[1757986506876,10.61337043,4543.2,4543.1,0.001]
[1757986509776,8.41227869,4543.2,4543.1,0.001]
[1757986510280,10.61337043,4543.2,4543.1,0.001]
[1757986511044,8.41227869,4543.2,4543.1,0.001]
[1757986512577,10.61337043,4543.2,4543.1,0.001]
[1757986514893,8.41227869,4543.2,4543.1,0.001]
[1757986516696,7.95347869,4543.2,4543.1,0.001]
[1757986516898,4.27747869,4543.2,4543.1,0.001]
[1757986517198,7.95347869,4543.2,4543.1,0.001]
[1757986518495,4.27747869,4543.2,4543.1,0.001]
[1757986518661,7.95347869,4543.2,4543.1,0.001]
[1757986519763,7.66587869,4543.2,4543.1,0.001]
[1757986520077,7.66587869,4543.2,4543.1,1.2068]
[1757986521601,3.98987869,4543.2,4543.1,1.2068]
[1757986521919,0.1096,4543.2,4543.1,1.2068]
[1757986522213,1.69300001,4543.7,4543.2,2.20109174]
[1757986522365,3.0,4543.5,4543.3,2.20104139]
[1757986522565,1.69300001,4543.7,4543.4,1.2289]
[1757986522969,1.69300001,4543.7,4543.5,0.9316]
[1757986523278,3.676,4543.6,4543.5,0.9316]
[1757986526911,3.676,4543.6,4543.5,0.4391]
[1757986527811,3.676,4543.6,4543.5,0.9316]
[1757986531600,3.676,4543.6,4543.5,0.4925]
[1757986531792,3.676,4543.6,4543.2,0.4925]
[1757986531793,0.1096,4543.5,4543.2,0.4925]
[1757986531992,3.676,4543.6,4543.1,0.001]
[1757986532194,2.99309174,4543.2,4543.1,0.001]
[1757986532514,6.95569174,4543.2,4543.1,0.001]
[1757986532877,7.41419174,4543.2,4543.1,0.001]
[1757986533082,7.50247238,4543.2,4543.1,0.001]
[1757986536635,8.10158568,4543.2,4543.1,0.001]
[1757986537040,11.40654959,4543.2,4543.1,0.001]
[1757986537595,16.48998433,4543.2,4543.1,0.001]
[1757986537811,17.29015286,4543.2,4543.1,0.001]
[1757986538097,46.69628952,4543.2,4543.1,0.001]
[1757986539034,47.75075878,4543.2,4543.1,0.001]
[1757986539233,46.95930108,4543.2,4543.1,0.001]
[1757986540202,46.9592206,4543.2,4543.1,0.001]
[1757986540705,16.9592206,4543.2,4543.1,0.001]
[1757986540905,46.9592206,4543.2,4543.1,0.001]
[1757986543232,47.55232174,4543.2,4543.1,0.001]
[1757986544907,2.993334,4542.7,4542.6,0.001]
[1757986545106,46.87343685,4542.7,4542.6,0.001]
[1757986545308,47.63636547,4542.7,4542.6,0.001]
[1757986545507,48.6460695,4542.7,4542.6,0.001]
[1757986545708,48.73437625,4542.7,4542.6,0.001]
[1757986546621,48.73433045,4542.7,4542.6,0.001]
[1757986547050,48.44320245,4542.7,4542.6,0.001]
[1757986547844,48.73433045,4542.7,4542.6,0.001]
[1757986548149,48.734279,4542.7,4542.6,0.001]
[1757986549516,48.73387805,4542.7,4542.6,0.001]
[1757986550807,48.99688961,4542.7,4542.6,0.001]
[1757986551530,48.73387805,4542.7,4542.6,0.001]
[1757986552623,48.06970997,4542.7,4542.6,0.001]
[1757986552823,48.06658526,4542.7,4542.6,0.001]
[1757986553023,48.27216177,4542.7,4542.6,0.001]
[1757986553223,48.27210873,4542.7,4542.6,0.001]
[1757986553420,48.06653222,4542.7,4542.6,0.001]
[1757986553955,48.53553222,4542.7,4542.6,0.001]
[1757986554347,43.72503822,4542.7,4542.6,0.001]
[1757986554525,36.30241422,4542.7,4542.6,0.001]
[1757986555054,45.05208522,4542.7,4542.6,0.001]
[1757986555255,43.46818535,4542.7,4542.6,0.001]
[1757986555465,43.56718535,4542.7,4542.6,0.001]
[1757986556254,43.94056335,4542.7,4542.6,0.001]
[1757986556654,43.45211635,4542.7,4542.6,0.001]
[1757986556858,43.35311635,4542.7,4542.6,0.001]
[1757986557174,44.96868363,4542.7,4542.6,0.001]
[1757986557328,45.51868363,4542.7,4542.6,0.001]
[1757986557531,45.06858363,4542.7,4542.6,0.001]
[1757986558280,48.08452663,4542.7,4542.6,0.001]
[1757986559861,37.64658963,4542.7,4542.6,0.001]
[1757986560267,34.31242563,4542.7,4542.6,0.001]
[1757986561274,44.16261417,4542.7,4542.6,0.001]
[1757986561579,35.82977917,4542.7,4542.6,0.001]
[1757986562395,47.98462663,4542.7,4542.6,0.001]
[1757986562990,48.08542663,4542.7,4542.6,0.001]
[1757986563192,48.87688433,4542.7,4542.6,0.001]
[1757986563575,49.32698433,4542.7,4542.6,0.001]
[1757986563946,48.87688433,4542.7,4542.6,0.001]
[1757986565479,48.08542663,4542.7,4542.6,0.001]
[1757986565781,5.99352786,4542.3,4542.2,0.001]
[1757986565989,3.9016,4542.2,4542.0,0.001]
[1757986566281,41.76186013,4542.1,4542.0,0.001]
[1757986566454,40.27063904,4542.1,4542.0,0.001]
[1757986566781,41.0821471,4542.1,4542.0,0.001]
[1757986567346,42.8783321,4542.1,4542.0,0.001]
[1757986569385,5.99377022,4541.8,4541.7,1e-08]
[1757986569582,47.55553971,4541.8,4541.7,1e-08]
[1757986569786,47.65803971,4541.8,4541.7,1e-08]
[1757986570243,48.4503468,4541.8,4541.7,1e-08]
[1757986570683,48.56366465,4541.8,4541.7,1e-08]
[1757986570859,48.65199909,4541.8,4541.7,1e-08]
[1757986571459,50.87049909,4541.8,4541.7,1e-08]
[1757986573382,50.078192,4541.8,4541.7,1e-08]
[1757986574582,20.078192,4541.8,4541.7,1e-08]
[1757986574787,50.97389909,4541.8,4541.7,1e-08]
[1757986575175,50.631692,4541.8,4541.7,1e-08]
[1757986575380,50.6315726,4541.8,4541.7,1e-08]
[1757986577189,50.1814726,4541.8,4541.7,1e-08]
[1757986577593,50.6315726,4541.8,4541.7,1e-08]
[1757986577762,50.1814726,4541.8,4541.7,1e-08]
[1757986577961,50.0780726,4541.8,4541.7,1e-08]
[1757986578176,46.4030726,4541.8,4541.7,1e-08]
[1757986578378,50.00659063,4541.8,4541.7,1e-08]
[1757986578777,13.10341869,4541.7,4541.6,0.001]
[1757986578983,47.58267013,4541.7,4541.6,0.001]
[1757986579186,47.58298584,4541.7,4541.6,1.2421]
[1757986579493,43.99632087,4541.7,4541.6,1.2421]
[1757986579698,47.67132087,4541.7,4541.6,1.2421]
[1757986580259,39.28250787,4541.7,4541.6,1.2421]
[1757986580593,44.36594261,4541.7,4541.6,1.2421]
[1757986580891,51.09467261,4541.7,4541.6,1.2421]
[1757986581521,53.41567261,4541.7,4541.6,1.2421]
[1757986581993,55.07628069,4541.7,4541.6,1.2421]
[1757986582793,55.07628452,4541.7,4541.6,1.2421]
[1757986583793,54.23438729,4541.7,4541.6,1.2421]
[1757986584101,47.40814629,4541.7,4541.6,1.2421]
[1757986584397,27.93949929,4541.7,4541.6,1.2421]
[1757986585070,33.99027829,4541.7,4541.6,1.2421]
[1757986585515,29.75224929,4541.7,4541.6,1.2421]
[1757986585912,36.12009229,4541.7,4541.6,1.2421]
[1757986586114,35.91380929,4541.7,4541.6,1.2421]
[1757986587023,51.80378729,4541.7,4541.6,1.2421]
[1757986587193,41.84296429,4541.7,4541.6,1.2421]
[1757986587626,40.76082429,4541.7,4541.6,1.2421]
[1757986587826,32.11085229,4541.7,4541.6,1.2421]
[1757986588208,35.38305732,4541.7,4541.6,1.2421]
[1757986588519,34.86379832,4541.7,4541.6,1.2421]
[1757986588819,34.07204629,4541.7,4541.6,1.2421]
[1757986589246,41.96547132,4541.7,4541.6,1.2421]
[1757986590093,40.89446032,4541.7,4541.6,1.2421]
[1757986590402,52.59553932,4541.7,4541.6,1.2421]
[1757986590604,52.59553932,4541.7,4541.6,0.771]
[1757986590793,52.59553932,4541.7,4541.6,0.001]
[1757986592423,51.80378729,4541.7,4541.6,0.922]
[1757986592846,49.61869129,4541.7,4541.6,0.922]
[1757986593395,50.07714129,4541.7,4541.6,0.922]
[1757986593596,48.76000229,4541.7,4541.6,0.922]
[1757986593797,46.10579129,4541.7,4541.6,1.2166]
[1757986594224,44.50150948,4541.7,4541.6,1.2166]
[1757986594531,46.43593648,4541.7,4541.6,1.2166]
[1757986594728,46.17750948,4541.7,4541.6,1.2166]
[1757986595306,47.36467398,4541.7,4541.6,1.2166]
[1757986595512,47.77633384,4541.7,4541.6,1.2166]
[1757986596398,48.16546184,4541.7,4541.6,1.2166]
[1757986596610,47.57145184,4541.7,4541.6,1.2166]
[1757986596812,45.92006584,4541.7,4541.6,1.2166]
[1757986597549,53.19843284,4541.7,4541.6,1.2166]
[1757986598050,53.50339675,4541.7,4541.6,1.2166]
[1757986598548,49.13288475,4541.7,4541.6,1.2166]
[1757986598747,49.13288475,4541.7,4541.6,0.7626]
[1757986598936,49.13288475,4541.7,4541.6,0.001]
[1757986599310,48.51614875,4541.7,4541.6,0.001]
[1757986599546,23.50339675,4541.7,4541.6,0.001]
[1757986599722,50.03136875,4541.7,4541.6,0.001]
[1757986600122,50.31896875,4541.7,4541.6,0.001]
[1757986600546,53.79099675,4541.7,4541.6,0.001]
[1757986600741,53.50339675,4541.7,4541.6,0.001]
[1757986603249,53.60239675,4541.7,4541.6,0.001]
[1757986603451,54.07319675,4541.7,4541.6,0.001]
[1757986604447,53.60239675,4541.7,4541.6,0.001]
[1757986604667,46.60239676,4541.7,4541.6,0.001]
[1757986605264,45.41523226,4541.7,4541.6,0.001]
[1757986605651,45.41671518,4541.7,4541.6,0.001]
[1757986605857,46.15053073,4541.7,4541.6,0.001]
[1757986606645,2.99396415,4541.4,4541.3,1e-08]
[1757986606881,5.99420661,4540.9,4540.7,0.468]
[1757986607181,47.71696665,4540.9,4540.8,64.452455]
[1757986607381,48.06243751,4540.9,4540.8,64.747055]
[1757986607753,48.72498827,4540.9,4540.8,64.747055]
[1757986607948,47.93078968,4540.9,4540.8,64.747055]
[1757986608959,17.93078968,4540.9,4540.8,64.747055]
[1757986609165,46.43287768,4540.9,4540.8,64.747055]
[1757986609367,43.23287768,4540.9,4540.8,64.747055]
[1757986609567,29.81271068,4540.9,4540.8,64.747055]
[1757986610290,30.08704577,4540.9,4540.8,64.747055]
[1757986610451,21.42495177,4540.9,4540.8,64.747055]
[1757986610652,21.19707477,4540.9,4540.8,64.747055]
[1757986611094,28.86361877,4540.9,4540.8,64.747055]
[1757986612156,38.55182477,4540.9,4540.8,64.747055]
[1757986612360,34.87782477,4540.9,4540.8,64.747055]
[1757986612562,32.81770677,4540.9,4540.8,64.747055]
[1757986613061,37.03873928,4540.9,4540.8,64.747055]
[1757986613268,37.24535308,4540.9,4540.8,64.747055]
[1757986613571,37.24517374,4540.9,4540.8,64.747055]
[1757986614162,17.62444474,4540.9,4540.8,64.747055]
[1757986614362,42.20031374,4540.9,4540.8,64.747055]
[1757986615000,38.52731374,4540.9,4540.8,64.747055]
[1757986615162,42.92993974,4540.9,4540.8,64.747055]
[1757986615363,45.48993974,4540.9,4540.8,64.747055]
[1757986615559,37.74710574,4540.9,4540.8,64.747055]
[1757986615787,32.36867674,4540.9,4540.8,64.747055]
[1757986615996,30.98866274,4540.9,4540.8,64.747055]
[1757986616194,30.45741374,4540.9,4540.8,64.747055]
[1757986616772,26.62977174,4540.9,4540.8,64.747055]
[1757986617184,26.62965479,4540.9,4540.8,64.747055]
[1757986617398,33.45411379,4540.9,4540.8,64.747055]
[1757986617604,31.86317479,4540.9,4540.8,64.747055]
[1757986618283,32.35327679,4540.9,4540.8,64.747055]
[1757986618484,28.87176279,4540.9,4540.8,64.747055]
[1757986618684,28.66317479,4540.9,4540.8,64.747055]
[1757986619617,25.30105279,4540.9,4540.8,64.747055]
[1757986620493,29.94421779,4540.9,4540.8,64.747055]
[1757986621392,35.75909679,4540.9,4540.8,64.747055]
[1757986621791,9.58585029,4540.9,4540.8,64.747055]
[1757986622018,13.38278078,4540.9,4540.8,64.747055]
[1757986622210,13.97762001,4540.9,4540.8,64.747055]
[1757986623433,17.52598701,4540.9,4540.8,64.747055]
[1757986623615,17.31942369,4540.9,4540.8,64.747055]
[1757986623818,13.38277088,4540.9,4540.8,64.747055]
[1757986626623,13.97761011,4540.9,4540.8,64.747055]
[1757986626842,25.20791788,4540.9,4540.8,63.531455]
[1757986627024,24.86282088,4540.9,4540.8,63.531455]
[1757986627356,43.48177088,4540.9,4540.8,63.531455]
[1757986628747,42.68202688,4540.9,4540.8,63.531455]
[1757986629052,36.51977888,4540.9,4540.8,63.531455]
[1757986629259,39.34689688,4540.9,4540.8,64.022655]
[1757986629556,37.47507888,4540.9,4540.8,64.494755]
[1757986629959,34.66740088,4540.9,4540.8,64.494755]
[1757986630256,40.48163788,4540.9,4540.8,64.494755]
[1757986631228,43.38277088,4540.9,4540.8,64.494755]
[1757986631849,43.03994588,4540.9,4540.8,64.494755]
[1757986632032,42.63650188,4540.9,4540.8,64.494755]
[1757986632239,13.38277088,4540.9,4540.8,64.494755]
[1757986632436,30.14023588,4540.9,4540.8,64.797055]
[1757986633360,29.24488288,4540.9,4540.8,64.797055]
[1757986634363,40.31503488,4540.9,4540.8,64.797055]
[1757986635169,37.95769388,4540.9,4540.8,64.797055]
[1757986636343,34.52491047,4540.9,4540.8,64.797055]
[1757986636684,28.77564188,4540.9,4540.8,64.797055]
[1757986636883,29.56984047,4540.9,4540.8,64.797055]
[1757986637442,14.17696947,4540.9,4540.8,64.797055]
[1757986637684,30.25975347,4540.9,4540.8,64.797055]
[1757986637848,29.36624761,4540.9,4540.8,64.797055]
[1757986638556,38.06630961,4540.9,4540.8,64.797055]
[1757986638963,34.34088612,4540.9,4540.8,64.797055]
[1757986639171,34.63575144,4540.9,4540.8,63.531455]
[1757986639372,30.96275144,4540.9,4540.8,63.531455]
[1757986639679,44.12560444,4540.9,4540.8,63.531455]
[1757986639863,43.62910444,4540.9,4540.8,63.531455]
[1757986641182,43.9745803,4540.9,4540.8,63.531455]
[1757986644007,49.06628101,4540.9,4540.8,63.531455]
[1757986644382,48.49733601,4540.9,4540.8,64.766355]
[1757986644570,48.77868101,4540.9,4540.8,64.766355]
[1757986645094,48.87768101,4540.9,4540.8,63.531455]
[1757986645301,49.36758101,4540.9,4540.8,63.531455]
[1757986645607,18.87768101,4540.9,4540.8,63.531455]
[1757986645808,18.87781487,4540.9,4540.8,63.531455]
[1757986646108,48.87781487,4540.9,4540.8,63.531455]
[1757986646309,48.87781487,4540.9,4540.8,59.98272905]
[1757986646612,18.87781487,4540.9,4540.8,59.98272905]
[1757986646783,20.55901276,4540.9,4540.8,10.88677944]
[1757986647129,52.14133042,4540.9,4540.8,7.56148085]
[1757986647285,52.25652984,4540.9,4540.8,7.41800435]
[1757986647690,52.25652984,4540.9,4540.6,0.001]
[1757986647691,5.3153036,4540.7,4540.6,1e-08]
[1757986647989,43.56920008,4540.7,4540.6,1e-08]
[1757986648192,44.15900008,4540.7,4540.6,1e-08]
[1757986648787,44.34770008,4540.7,4540.6,1e-08]
[1757986649879,44.69324243,4540.7,4540.6,1e-08]
[1757986650226,44.78160517,4540.7,4540.6,1e-08]
[1757986650678,44.59290517,4540.7,4540.6,1e-08]
[1757986651284,15.3153521,4540.6,4540.5,0.001]
[1757986651485,51.75778095,4540.6,4540.5,0.001]
[1757986651729,52.34848095,4540.6,4540.5,0.001]
[1757986652716,22.34848095,4540.6,4540.5,0.001]
[1757986652986,52.34848095,4540.6,4540.5,0.001]
[1757986653790,51.15994858,4540.6,4540.5,0.001]
[1757986655180,3.113,4540.4,4540.3,0.001]